Cogmind - Beta 9.4 @@@ ROGUE MODE // 2020.02.16 @ 18:23:21 // Winter2019/RPGLIKE Player: Exeight Result: Destroyed by as-47293 with Assembled Heavy Rifle Performance ------------- Evolutions (0) 0 Regions Visited (4) 800 Robots Destroyed (21) 105 Value Destroyed (434) 434 Prototype IDs (22) 440 Alien Tech Used (0) 0 Bonus (360) 360 TOTAL SCORE: 2139 Bonus ------- Follower Combat Kills 60 Aligned with FarCom 300 Cogmind --------- Core Integrity 0/600 Matter 300/300 Energy 35/250 System Corruption 4% Temperature Cool (2) Movement Treading (160) Location -9/Mines Parts ------- > --- POWER (1) -------- Ion Engine > --- PROPULSION (2) --- Light Treads Light Treads > --- UTILITY (3) ------ Improved Heat Sink Improved Heat Sink Improved Heat Sink > --- WEAPON (2) ------- Beamcaster Latent Energy Streamer > --- INVENTORY (1) ---- Experimental Sensor Array Peak State ------------ > --- POWER ------------ Ion Engine > --- PROPULSION ------- Light Treads Light Treads > --- UTILITY ---------- Improved Heat Sink Improved Heat Sink Improved Heat Sink > --- WEAPON ----------- Beamcaster Latent Energy Streamer > --- INVENTORY -------- Experimental Sensor Array [Rating: 27] Favorites ----------- Power Ion Engine Engine Ion Engine Propulsion Light Treads Treads Light Treads Utility Improved Heat Sink Device Improved Heat Sink Weapon Light Assault Rifle Energy Gun Beamcaster Energy Cannon Latent Energy Streamer Ballistic Gun Light Assault Rifle Build | -11 -10 -10 -10 -9 ------- Run | Scr Mat Min Exi Min Slots Evolved 4 | 2 1 1 . . Power . | . . . . . Propulsion 1 | 1 . . . . Utility 2 | . 1 1 . . Weapon 1 | 1 . . . . Parts Attached 10 | 5 1 3 1 . Power 1 | 1 . . . . Engine 1 | 1 . . . . Core . | . . . . . Reactor . | . . . . . Propulsion 2 | 2 . . . . Treads 2 | 2 . . . . Leg . | . . . . . Wheel . | . . . . . Hover . | . . . . . Flight . | . . . . . Utility 3 | . 1 2 . . Device 3 | . 1 2 . . Storage . | . . . . . Processor . | . . . . . Hackware . | . . . . . Protection . | . . . . . Artifact . | . . . . . Weapon 4 | 2 . 1 1 . Energy Gun 1 | . . 1 . . Energy Cannon 1 | . . . 1 . Ballistic Gun 2 | 2 . . . . Ballistic Cannon . | . . . . . Launcher . | . . . . . Special Weapon . | . . . . . Impact Weapon . | . . . . . Slashing Weapon . | . . . . . Piercing Weapon . | . . . . . Special Melee Weapon . | . . . . . Unidentified Prototypes . | . . . . . Parts Lost . | . . . . . Power . | . . . . . Propulsion . | . . . . . Utility . | . . . . . Weapon . | . . . . . Highest Loss Streak . | . . . . . Average Slot Usage (%) 94 | . 83 94 100 100 Engine 13 | . 15 13 12 12 Treads 26 | . 30 26 25 25 Device 26 | . 6 26 37 37 Energy Gun 8 | . . 8 12 12 Energy Cannon 2 | . . . 6 12 Ballistic Gun 15 | . 30 18 5 . Naked Turns . | . . . . . Heaviest Build 23 | 8 9 14 23 23 Greatest Support 40 | 40 40 40 40 40 Greatest Overweight (x) . | . . . . . Average Overweight (x) . | . . . . . Largest Inventory Capacity 1 | . . 1 1 1 Average Capacity . | . . . 1 1 Most Carried 1 | . . 1 1 1 Average Carried . | . . . 1 1 Final Capacity 1 | . . 1 1 1 Final Carried 1 | . . 1 1 1 Class Distribution -------------------- 50% | Scavenger-Mutant 49% | Mutant Dominant Class ---------------- Mutant | -10/Materials Mutant | -10/Mines Scavenger-Mutant | -10/Exiles Scavenger-Mutant | -9/Mines Resources | -11 -10 -10 -10 -9 ----------- Run | Scr Mat Min Exi Min Matter Collected 465 | 246 94 115 . 10 Remotely . | . . . . . Salvage Created 400 | . 200 130 . 70 Parts 38 | . 14 11 . 13 Haulers Intercepted . | . . . . . Recyclers Shooed . | . . . . . Parts Field Recycled . | . . . . . Retrieved Matter . | . . . . . Parts Self-Destructed . | . . . . . Prevented . | . . . . . Kills | -11 -10 -10 -10 -9 ------- Run | Scr Mat Min Exi Min Combat Hostiles Destroyed 20 | . 7 8 . 5 Guns 16 | . 7 8 . 1 AOE 4 | . . . . 4 Classes Destroyed 5 | . 3 . . 2 Watcher 1 | . 1 . . . Swarmer 13 | . 3 8 . 2 Grunt 4 | . 4 . . . Demolisher 2 | . . . . 2 Assembled 1 | . . . . 1 Best Kill Streak 5 | . 3 3 . 5 Combat Bots Only 5 | . 3 3 . 5 Max Kills in Single Turn 4 | . 1 1 . 4 Gunslinging . | . . . . . Exploded 4 | . . . . 4 Melee . | . . . . . Uniques/NPCs Destroyed . | . . . . . Combat | -11 -10 -10 -10 -9 -------- Run | Scr Mat Min Exi Min Damage Taken 1142 | . 254 375 . 513 Core 911 | . 202 292 . 417 Absorbed by Shields . | . . . . . Redirected to Core 773 | . 172 256 . 345 Core Remaining (%) 100 | 100 . . . . Volleys Fired 50 | . 20 25 . 5 Largest 2 | . 2 2 . 2 Hottest 135 | . 40 95 . 135 Shots Fired 97 | . 40 50 . 7 Gun 94 | . 40 50 . 4 Cannon 3 | . . . . 3 Launcher . | . . . . . Special . | . . . . . Kinetic 85 | . 40 45 . . Thermal 9 | . . 5 . 4 Explosive . | . . . . . Electromagnetic 3 | . . . . 3 Robot Hit Streak 11 | . 11 6 . 2 Robot Miss Streak 5 | . 1 3 . 5 Penetration Max . | . . . . . Secondary Targets 1 | . . 1 . . Max Gunslinging Chain 1 | . . 1 . . Shots Hit Robots 60 | . 28 30 . 2 Core Hits 33 | . 12 10 . 11 Critical Hits 1 | . 1 . . . Critical Kills 1 | . 1 . . . Critical Parts Destroyed . | . . . . . Melee Attacks . | . . . . . Impact . | . . . . . Slashing . | . . . . . Piercing . | . . . . . Sneak Attacks . | . . . . . Combat Hostiles . | . . . . . Follow-up Attacks . | . . . . . Damage Inflicted 923 | . 278 353 . 292 Guns 672 | . 278 353 . 41 Cannons 4 | . . . . 4 Explosions 240 | . . . . 240 Melee . | . . . . . Ramming 7 | . . . . 7 Kinetic 588 | . 278 310 . . Thermal 84 | . . 43 . 41 Explosive . | . . . . . Electromagnetic 244 | . . . . 244 Impact . | . . . . . Slashing . | . . . . . Piercing . | . . . . . Highest Corruption 4 | . . . . 4 Average Corruption 2 | . . . . 2 Corruption Purged . | . . . . . Effects 1 | . . . . 1 Data Loss (minor) 1 | . . . . 1 Overload Shots . | . . . . . Overflow Damage 3 | . . . . 3 Projectiles . | . . . . . Explosions 3 | . . . . 3 Melee . | . . . . . Knockbacks . | . . . . . Impact . | . . . . . Kinetic . | . . . . . Secondary . | . . . . . Self-Inflicted Damage 32 | . . . . 32 Shots 2 | . . . . 2 Rammed 4 | . . . . 4 Targets Rammed 4 | . . . . 4 Kicked . | . . . . . Crushed . | . . . . . Highest Temperature 9 | . 9 . . . Average Temperature 7 | . 7 . . . Received Heat Transfer 132 | . 126 6 . . Siege Activations . | . . . . . Robots Corrupted . | . . . . . Combat Hostiles . | . . . . . Parts Fried . | . . . . . Impact Corruptions . | . . . . . Robots Melted . | . . . . . Combat Hostiles . | . . . . . Parts Melted 1 | . . . . 1 Heat Transferred 148 | . . 74 . 74 Parts Sabotaged . | . . . . . Parts Stolen . | . . . . . Parts Stripped . | . . . . . Power Chain Reactions . | . . . . . Missiles Intercepted . | . . . . . Latent Energy Used 167 | . . . . 167 LE Corruption 4 | . . . . 4 Alert | -11 -10 -10 -10 -9 ------- Run | Scr Mat Min Exi Min Peak Influence 177 | . 177 159 . 106 Average Influence 75 | . 99 74 . 68 Maximum Alert Level . | . . . . . Low Security (%) 100 | 100 100 100 . 100 Level 1 . | . . . . . Level 2 . | . . . . . Level 3 . | . . . . . Level 4 . | . . . . . Level 5 . | . . . . . High Security . | . . . . . Max Security . | . . . . . Squads Dispatched . | . . . . . Investigation . | . . . . . Extermination . | . . . . . Reinforcement . | . . . . . Assault . | . . . . . Garrison . | . . . . . Intercept . | . . . . . Construction Impeded . | . . . . . Haulers Reinforced . | . . . . . Stealth | -11 -10 -10 -10 -9 --------- Run | Scr Mat Min Exi Min Distress Signals 1 | . . . . 1 Communications Jammed . | . . . . . Distress Signals . | . . . . . Times Spotted 32 | . 9 11 . 12 Peak Tracking Total 4 | . 3 3 . 4 Tactical Retreats 3 | . 1 1 . 1 Traps | -11 -10 -10 -10 -9 ------- Run | Scr Mat Min Exi Min Traps Triggered . | . . . . . Indirectly . | . . . . . Trap Hack Attempts . | . . . . . Triggered . | . . . . . Disarmed . | . . . . . Reprogrammed . | . . . . . Reused . | . . . . . Traps Extracted . | . . . . . Installed . | . . . . . Triggered . | . . . . . Machines | -11 -10 -10 -10 -9 ---------- Run | Scr Mat Min Exi Min Machines Disabled 2 | . . 1 . 1 Max in Single Turn . | . . . . . Machines Sabotaged . | . . . . . Garrisons Compromised . | . . . . . Overloaded Fab Kills . | . . . . . Fab Network Shutdowns . | . . . . . Hacking | -11 -10 -10 -10 -9 --------- Run | Scr Mat Min Exi Min Machines Accessed 3 | . . . 3 . Terminals . | . . . . . Fabricators . | . . . . . Repair Stations . | . . . . . Recycling Units . | . . . . . Scanalyzers . | . . . . . Garrison Access . | . . . . . Total Hacks 16 | . . . 16 . Successful 16 | . . . 16 . Failed . | . . . . . Catastrophic . | . . . . . Database Lockouts . | . . . . . Manual 1 | . . . 1 . Terminals . | . . . . . Fabricators . | . . . . . Repair Stations . | . . . . . Recycling Units . | . . . . . Scanalyzers . | . . . . . Garrison Access . | . . . . . Terminal Hacks 16 | . . . 16 . Record 15 | . . . 15 . EX-Prototype ID Bank 1 | . . . 1 . Fabricator Hacks . | . . . . . Repair Station Hacks . | . . . . . Recycling Unit Hacks . | . . . . . Scanalyzer . | . . . . . Garrison Access Hacks . | . . . . . Unauthorized Hacks . | . . . . . Terminals . | . . . . . Fabricators . | . . . . . Repair Stations . | . . . . . Recycling Units . | . . . . . Scanalyzers . | . . . . . Garrison Access . | . . . . . Data Cores Recovered . | . . . . . Used . | . . . . . Hacking Detections . | . . . . . Full Trace Events . | . . . . . Feedback Events . | . . . . . Feedback Blocked . | . . . . . Robot Schematics Acquired . | . . . . . Robots Built . | . . . . . Matter . | . . . . . Time . | . . . . . Total Robot Build Rating . | . . . . . Part Schematics Acquired . | . . . . . Parts Built . | . . . . . Matter . | . . . . . Time . | . . . . . Total Part Build Rating . | . . . . . Parts Repaired . | . . . . . Time . | . . . . . Parts Recycled . | . . . . . Recycled Matter . | . . . . . Retrieved Matter . | . . . . . Retrieved Components . | . . . . . Parts Scanalyzed . | . . . . . Part Schematics Acquired . | . . . . . Parts Damaged . | . . . . . Bothacking | -11 -10 -10 -10 -9 ------------ Run | Scr Mat Min Exi Min Used RIF Installer . | . . . . . Robots Hacked . | . . . . . Non-combat . | . . . . . Combat . | . . . . . Robot Hacks Applied . | . . . . . Relay Couplers Released . | . . . . . Robots Rewired . | . . . . . Allies Hacked . | . . . . . Hacks Repelled . | . . . . . Allies | -11 -10 -10 -10 -9 -------- Run | Scr Mat Min Exi Min Total Allies 4 | . . 4 . . Largest Group 3 | . . 3 3 3 Highest-Rated Group 40 | . . 40 40 40 Highest-Rated Ally 31 | . . 31 16 16 Total Orders . | . . . . . Ally Attacks 18 | . . 8 . 10 Total Damage 245 | . . 148 . 97 Kills 2 | . . 2 . . Allies Corrupted . | . . . . . Allies Melted . | . . . . . Intel | -11 -10 -10 -10 -9 ------- Run | Scr Mat Min Exi Min Robot Analysis Total . | . . . . . Derelict Logs Recovered 2 | . . 2 . . Drone Launches . | . . . . . Drone Recoveries . | . . . . . Exploration | -11 -10 -10 -10 -9 ------------- Run | Scr Mat Min Exi Min Turns Passed 2430 | 77 301 1340 624 88 Spaces Moved 1341 | 48 140 721 388 44 Core 6 | 6 . . . . Treads 1335 | 42 140 721 388 44 Legs . | . . . . . Wheels . | . . . . . Hover . | . . . . . Flight . | . . . . . Fastest Speed 50 | 50 160 160 160 160 Average Speed 159 | 146 160 160 160 160 Slowest Speed 160 | 160 160 160 160 160 Overloaded Moves . | . . . . . Propulsion Burnouts . | . . . . . Robots Hopped . | . . . . . Cave-ins Triggered . | . . . . . Exploration Rate (%) 44 | 3 26 99 82 10 Regions Visited 4 Branch Regions 3 Pre-discovered Areas 1 | . . 1 . . Known Exits Taken . | . . . . . Unknown Exits Taken 4 | 1 1 1 1 . Scrap Searched 1 | . . 1 . . Spaces Dug . | . . . . . Terrain Destroyed 4 | . . . . 4 Melee . | . . . . . Projectile . | . . . . . AOE 4 | . . . . 4 Actions | -11 -10 -10 -10 -9 --------- Run | Scr Mat Min Exi Min Total 1539 | 52 181 862 391 53 Wait 120 | . 16 102 2 . Move 1337 | 47 139 720 387 44 Hop . | . . . . . Pick Up 1 | . . 1 . . Fast Attach 10 | 5 1 3 1 . Attach . | . . . . . Detach . | . . . . . Swap . | . . . . . Drop 2 | . . 1 1 . Fire 50 | . 20 25 . 5 Melee . | . . . . . Ram . | . . . . . Kick . | . . . . . Crush 4 | . . . . 4 Escape Stasis . | . . . . . Rewire . | . . . . . Trap . | . . . . . Miscellaneous 15 | . 5 10 . . Route ------- -11/Scrapyard -10/Materials -10/Mines (discovered 3 exits: [*Mat x2] / *Exi) -10/Exiles -9/Mines History --------- Turn | Location | Event 3 | -11/Scrapyard | Discovered new exit (range 15) 11 | -11/Scrapyard | Upgraded with Propulsion slot (x1) 30 | -11/Scrapyard | Upgraded with Weapon slot (x1) 78 | -11/Scrapyard | Entered Materials 230 | -10/Materials | Upgraded with Utility slot (x1) 308 | -10/Materials | Build established: Mutant 315 | -10/Materials | Discovered new exit (range 11) 379 | -10/Materials | Entered Mines 442 | -10/Mines | Met a Derelict bent on vengeance 533 | -10/Mines | Reached level 2 796 | -10/Mines | Core integrity fell below 50% 865 | -10/Mines | Discovered new exit (range 13) 925 | -10/Mines | Discovered new exit (range 14) 1099 | -10/Mines | Received a Mining Laser from a helpful Derelict 1152 | -10/Mines | Received a Rocket Launcher from a helpful Derelict 1210 | -10/Mines | Upgraded with Utility slot (x1) 1231 | -10/Mines | Learned location of Zion (-7) 1337 | -10/Mines | Found a damaged Exp. Sensor Array with a note attached 1400 | -10/Mines | Found Prototype Device 1474 | -10/Mines | Learned Materials security intel 1499 | -10/Mines | Build established: Scavenger-Mutant 1515 | -10/Mines | Assisted by bots powering up and referring to "LRC-V3" 1705 | -10/Mines | Deemed a non-threat by the Exiles lab entrance 1705 | -10/Mines | Discovered new exit (range 5) 1719 | -10/Mines | Entered Exiles 1719 | -10/Exiles | Accompanied by 3 allies 1759 | -10/Exiles | Met 8R-AWN 1785 | -10/Exiles | Met EX-HEX 1835 | -10/Exiles | Met EX-BIN 1855 | -10/Exiles | Reached level 3 1855 | -10/Exiles | Aligned with FarCom system 1857 | -10/Exiles | Given EX-Vault access code 1990 | -10/Exiles | Opened EX-Vault 2005 | -10/Exiles | Found Latent Energy Streamer 2043 | -10/Exiles | Warned to stay clear of 0b10 Research branches 2096 | -10/Exiles | Met EX-DEC 2159 | -10/Exiles | Visited The Gauntlet 2321 | -10/Exiles | Discovered new exit (range 11) 2343 | -10/Exiles | Left Exiles lab with Latent Energy Streamer 2343 | -10/Exiles | Entered Mines 2343 | -9/Mines | Accompanied by 3 allies 2344 | -9/Mines | Assembled infested the area 2426 | -9/Mines | Core integrity fell below 20% 2431 | -9/Mines | Destroyed by as-47293 with Assembled Heavy Rifle Last Messages --------------- Acquired 10 matter. U-05 Engineer lays Concrete. U-05 Engineer builds a Wall. U-05 Engineer lays Concrete. Trooper 1b destroyed. U-05 Engineer lays Concrete. Slammed into T-07 Excavator. U-05 Engineer lays Concrete. The unstable cave ceiling collapses. U-05 Engineer destroyed. as-28566 destroyed. U-05 Engineer destroyed. S-10 Pest destroyed. K-01 Serf destroyed. Slammed into as-62422. System corrupted: Component data lost. K-01 Serf system terminally corrupted. Slammed into as-62422. Protomatter-13 decays. R-06 Scavenger collects Launcher Guidance Computer. Map ----- +----------------------------------------------------+ | ?????????????????????????????????????? | | ?????????????????????????????????????? | | ?????????????????????????????????????? | | ?????????????????????????????????????? | | ?????????????????????????????????????? | | ?????????????????????????????????????? | | ?????????????????????????????????????? | | ?????????????????????????????????????? | | ?????????????????????????????????????? | | ?????????????????????????????????????? | | ?????????????????????????????????????? | | ??????????????#??????????????????????? | | ?????????????# ??????????????????????? | | ????????????? ??????????????????????? | | ????????????? ??????????????????????? | | ????????????? ??????????????????????? | | ????????????? ??????????????????????? | | ????????????# ??????????????????????? | | ????????????#a#??????????????????????? | | ????????????# #??????????????????????? | | ????????????# #??????????????????????? | | ????????????# #??????????????????????? | | ????????????# #?#####????????????????? | | ???????????## ## # ##???????????????? | | ??????????## # #####???????????? | | ??????????# @ #???????????? | | ??????######a # #???????????? | | ??????# % %a%a #???????????? | | ??????# ##%#a % [%!*|#???????????? | | ??????# ##### |=!!!%=!#???????????? | | ??????# #???## ##%=!==]!*#???????????? | | ??????# #?????# !||!% ==#???????????? | | ?????## ######### %*%#%#=#???????????? | | ?????# =%#####[###???????????? | | ?????# =#???? #?????????????? | | ?????# ### #???? #?????????????? | | ?????# ##?????????#?????????????? | | ?????# ##????????????????????????? | | ?????## ###?????????????????????????? | | ??????####???????????????????????????? | | ?????????????????????????????????????? | | ?????????????????????????????????????? | | ?????????????????????????????????????? | | ?????????????????????????????????????? | | ?????????????????????????????????????? | | ?????????????????????????????????????? | | ?????????????????????????????????????? | | ?????????????????????????????????????? | | ?????????????????????????????????????? | | ?????????????????????????????????????? | +----------------------------------------------------+ Best States ------------- Heat Dissipation 67 Energy Generation 10 Energy Capacity 250 Matter Stores 300 Matter Capacity 300 Sight Range 16 Terrain Scan Density 10 Evasion (%) 40 Recoil Reduction 2 Item Schematics ----------------- None Robot Schematics ------------------ None Fabricated ------------ Nothing Alien Tech Used ----------------- None Achievements -------------- None Challenges ------------ None RPGLIKE | -11 -10 -10 -10 -9 --------- Run | Scr Mat Min Exi Min Levels Raised 2 | . . 1 1 . XP Earned 7109 | 3000 885 1769 350 1105 XP Spent 2550 | 1000 500 1050 . . Upgrades 5 | 2 1 2 . . Propulsion Slot 1 | 1 . . . . Utility Slot 2 | . 1 1 . . Weapon Slot 1 | 1 . . . . Inventory Capacity 1 | . . 1 . . Protomatter Created 159 | . 73 22 . 64 Integrity Restored 297 | . 102 195 . . Core 297 | . 102 195 . . Protomatter Decayed 351 | . 39 206 . 106 Game ------ Seed FortressBladeBlade Manual? 0 Play Time 00:13:41 Cumulative 52.5 hours Start 2020.02.16 @ 18:01:39 End 2020.02.16 @ 18:23:21 Sessions 2 Manual Loads 0 Difficulty Rogue Special Mode Winter2019/RPGLIKE Game No. 55 Rogue 55 Adventurer 0 Explorer 0 Win Type - Total 0 Types 0/0/0/0/0/0/0 Lore% 22 Gallery% 28 Achievement% 28 Wizard Run 0 Options --------- ASCII 0 Keyboard 0 Movement Mouse Keybinds 0 Fullscreen 0 Font 32/SmallcapsGlow Map View 76x50 Tactical HUD 0 Map Filters NONE Filters NONE Steam 1 RUN: 913b4c17-5e8d-4e25-9ff4-a059ad54d68c